bitfinex/quotes_ETHUSD_20241204
["timestamp","ask_amount","ask_price","bid_price","bid_amount"]
[1733318238154,1.11,3727.8,3727.7,2.68261]
[1733318238777,1.11,3727.8,3727.3,3.27097952]
[1733318238972,1.11,3727.8,3727.3,2.95386952]
[1733318239176,2.22,3727.8,3727.5,3.0]
[1733318239361,2.22,3727.8,3727.6,3.0]
[1733318239566,1.6183,3727.7,3727.3,2.95387952]
[1733318239773,1.6183,3727.7,3727.4,3.0]
[1733318240411,1.6183,3727.7,3727.5,3.0]
[1733318240711,0.55,3727.4,3727.1,3.0]
[1733318240859,0.55,3727.4,3725.8,4.68966945]
[1733318241055,0.55,3727.4,3726.5,2.68348]
[1733318241667,1.6183,3727.3,3726.9,2.68312]
[1733318242367,2.7283,3727.3,3727.0,2.68309]
[1733318243493,2.7283,3727.3,3726.5,2.68343]
[1733318243494,0.55,3727.2,3726.5,2.68343]
[1733318243877,0.55,3727.2,3725.9,2.68385]
[1733318244074,0.55,3726.8,3726.0,0.422395]
[1733318244276,0.55,3726.8,3725.4,4.80536945]
[1733318244500,0.55,3726.8,3726.2,2.68365]
[1733318244670,0.55,3726.8,3725.4,1.6558]
[1733318245107,0.55,3726.8,3726.4,2.68352]
[1733318245678,1.66,3726.8,3726.2,2.68368]
[1733318245883,1.66,3726.8,3725.9,2.68387]
[1733318245884,1.66,3726.8,3726.3,2.68362]
[1733318246386,1.66,3726.8,3726.0,2.68382]
[1733318246681,1.66,3726.8,3725.7,3.0]
[1733318246682,0.55,3726.6,3725.7,3.0]
[1733318247109,0.55,3726.6,3726.2,2.68363]
[1733318247294,1.66,3726.6,3726.2,2.68363]
[1733318247493,1.66,3726.6,3726.1,2.68369]
[1733318247724,1.66,3726.6,3726.2,2.68365]
[1733318248727,1.66,3726.6,3725.9,2.68384]
[1733318248926,0.55,3726.4,3725.9,2.68384]
[1733318249226,0.55,3726.5,3725.7,3.0]
[1733318249522,0.55,3726.3,3725.7,3.0]
[1733318249901,0.55,3726.3,3725.0,1.5979]
[1733318250112,0.55,3726.3,3725.7,3.0]
[1733318250496,1.66,3726.3,3725.7,2.68405]
[1733318250718,1.66,3726.3,3725.2,3.0]
[1733318250922,1.66,3726.3,3725.1,0.15979]
[1733318251089,1.11,3726.3,3725.3,3.0]
[1733318251288,1.11,3726.3,3726.2,2.68369]
[1733318251508,1.11,3726.3,3726.2,5.68369]
[1733318251930,2.7251,3726.3,3724.7,2.95302]
[1733318252231,1.6151,3726.2,3724.7,2.68472]
[1733318252583,1.6151,3726.2,3725.5,2.68419]
[1733318252786,0.55,3726.1,3725.3,2.68433]
[1733318253013,1.6151,3726.1,3725.3,2.68431]
[1733318253388,0.55,3726.0,3725.0,2.68456]
[1733318253724,0.55,3726.0,3725.3,2.68428]
[1733318253925,1.5837,3725.9,3725.1,3.252926]
[1733318254130,1.5837,3725.9,3723.8,2.68541]
[1733318254131,0.55,3725.8,3724.4,0.53659911]
[1733318254337,1.5837,3725.9,3725.8,2.68398]
[1733318254489,1.5837,3725.9,3725.6,2.68411]
[1733318254690,1.5837,3725.9,3725.8,2.68398]
[1733318254931,1.11,3726.0,3725.9,2.68391]
[1733318255132,1.11,3726.0,3725.9,3.220699]
[1733318255285,1.11,3726.0,3725.9,2.68391]
[1733318255636,2.22,3726.0,3725.9,2.68391]
[1733318256085,2.22,3726.0,3725.9,4.31641]
[1733318256993,2.22,3726.0,3725.9,2.68391]
[1733318257215,3.33,3726.0,3725.9,2.68391]
[1733318257526,3.33,3726.0,3725.9,3.220708]
[1733318258944,4.44,3726.0,3725.9,3.220708]
[1733318259541,4.44,3726.0,3725.9,6.220708]
[1733318260494,5.55,3726.0,3725.9,6.220708]
[1733318262083,6.66,3726.0,3725.9,6.220708]
[1733318263765,7.77,3726.0,3725.9,6.220708]
[1733318265500,8.88,3726.0,3725.9,6.220708]
[1733318265713,8.88,3726.0,3725.9,3.536798]
[1733318265915,8.88,3726.0,3725.4,1.5746]
[1733318265916,10.4895,3726.0,3725.4,3.0]
[1733318266067,8.88,3726.0,3725.9,2.68391]
[1733318266269,8.88,3726.0,3725.9,5.68391]
[1733318266890,10.421,3726.0,3725.9,5.68391]
[1733318267213,11.531,3726.0,3725.9,5.68391]
[1733318267378,11.531,3726.0,3725.9,3.0]
[1733318267573,11.531,3726.0,3725.8,2.68395]
[1733318267778,11.531,3726.0,3725.9,2.68391]
[1733318268579,12.641,3726.0,3725.9,2.68391]
[1733318270290,13.751,3726.0,3725.9,2.68391]
[1733318270913,12.21,3726.0,3725.9,3.220713]
[1733318271314,12.21,3726.0,3725.9,3.489013]
[1733318271521,12.21,3726.0,3725.9,6.220713]
[1733318271981,13.32,3726.0,3725.9,6.220713]
[1733318273729,14.43,3726.0,3725.9,6.220713]
[1733318275513,8.49513799,3726.0,3725.9,7.812513]
[1733318275821,8.24221669,3726.0,3725.9,7.812513]
[1733318276182,4.21645669,3726.0,3725.9,7.812513]
[1733318277131,2.64261669,3726.0,3725.9,7.812513]
[1733318277620,1.30069669,3726.0,3725.9,7.812513]
[1733318277788,6.69e-06,3726.0,3725.9,7.812513]
[1733318278830,1.11000669,3726.0,3725.9,7.812513]
[1733318280511,2.22000669,3726.0,3725.9,7.812513]
[1733318281419,2.22000669,3726.0,3725.9,3.220713]
[1733318281618,2.22000669,3726.0,3725.9,2.68391]
[1733318282100,3.33000669,3726.0,3725.9,2.68391]
[1733318282414,3.33000669,3726.0,3725.0,2.68449]
[1733318282415,4.99240669,3726.0,3725.0,2.68449]
[1733318282613,4.99240669,3726.0,3725.1,2.68449]
[1733318282816,4.99240669,3726.0,3724.7,1.6346]
[1733318282817,4.99240669,3726.0,3724.8,2.6847]
[1733318283141,3.33000669,3726.0,3725.2,2.68441]
[1733318283315,3.33000669,3726.0,3725.9,2.68391]
[1733318283720,3.33000669,3726.0,3725.9,5.68391]
[1733318284018,4.44000669,3726.0,3725.9,7.22641]
[1733318285151,2.22,3726.3,3725.9,7.22641]
[1733318285356,2.22,3726.6,3726.5,7.38163619]
[1733318285646,2.22,3726.6,3726.5,10.38163619]
[1733318287110,3.33,3726.6,3726.5,10.38163619]
[1733318287844,3.33,3726.6,3726.5,11.039674]
[1733318288709,4.44,3726.6,3726.5,11.039674]
[1733318288911,4.44,3726.6,3726.5,12.46461583]
[1733318289321,4.44,3726.6,3726.5,7.10842183]
[1733318289526,4.44,3726.6,3726.5,2.68348]
[1733318290048,4.44,3726.6,3726.3,2.68361]
[1733318290281,4.44,3726.6,3726.0,1.03802662]
[1733318290458,5.55,3726.6,3726.5,2.68348]
[1733318290756,5.55,3726.6,3726.5,5.68348]
[1733318290940,5.55,3726.6,3726.1,2.68373]
[1733318291442,5.55,3726.6,3725.9,2.6839]
[1733318291657,1.5036,3726.5,3725.2,0.94570601]
[1733318291836,1.5036,3726.3,3725.5,2.68419]
[1733318292427,1.5036,3726.3,3725.3,2.68433]
[1733318292641,1.6336,3726.1,3724.9,0.49792789]
[1733318292843,1.6336,3726.1,3725.2,2.68438]
[1733318293754,1.91023477,3726.0,3725.3,3.0]
[1733318294069,1.6594,3726.0,3725.3,5.68429]
[1733318294440,1.6594,3726.0,3725.2,3.0]
[1733318294658,2.0302095,3726.0,3724.8,2.68464]
[1733318294839,1.6048,3725.5,3724.2,2.68514]
[1733318295163,1.6065,3725.3,3724.2,2.68514]
[1733318295359,1.6065,3725.1,3724.0,2.68528]
[1733318295863,2.68452,3725.1,3723.8,2.68541]
[1733318296068,1.948452,3725.0,3723.8,2.68541]
[1733318296271,1.625,3724.7,3723.8,2.68541]
[1733318296437,1.625,3724.7,3723.4,0.53336842]
[1733318296644,1.625,3724.7,3723.5,0.02685059]
[1733318297228,1.625,3724.7,3724.1,3.15385619]
[1733318297453,1.5199,3725.4,3724.6,2.6848]
[1733318297637,1.5199,3725.4,3724.2,3.74374062]
[1733318297876,1.5199,3725.4,3724.4,2.68498]
[1733318298175,1.5199,3725.4,3724.5,2.6849]
[1733318298537,1.5199,3725.4,3724.2,0.74374062]
[1733318298756,1.5199,3725.4,3724.5,2.68485]
[1733318299141,1.5199,3725.4,3724.3,3.32791706]
[1733318299353,2.6299,3725.4,3724.8,2.6847]
[1733318299754,2.6299,3725.4,3724.7,2.68472]
[1733318300070,2.6299,3725.4,3724.5,0.02684328]
[1733318300237,2.6299,3725.4,3725.0,2.68453]
[1733318300433,2.6299,3725.4,3724.5,0.79754403]
[1733318300664,2.6299,3725.4,3725.3,2.68434]
[1733318300966,2.22,3725.4,3725.3,2.68434]
[1733318301795,2.22,3725.4,3725.2,3.0]
[1733318302078,2.22,3725.4,3725.3,2.68434]
[1733318302262,2.22,3725.4,3724.5,4.49615335]
[1733318302263,2.22,3725.4,3724.9,3.0]
[1733318302577,1.5536,3725.3,3724.9,5.68462]
[1733318302738,1.5536,3725.3,3724.6,2.68478]
[1733318302936,1.5536,3725.3,3724.7,2.68471]
[1733318303751,1.5536,3725.3,3724.8,2.6847]
[1733318303977,1.5536,3725.3,3724.5,0.79754403]
[1733318304180,1.5536,3725.3,3724.9,2.68463]
[1733318304353,2.6636,3725.3,3724.9,2.68463]
[1733318304742,2.6636,3725.3,3724.6,3.3330364]
[1733318305082,2.6636,3725.3,3724.5,3.0]
[1733318305308,2.6636,3725.3,3724.4,2.68497]
[1733318305309,2.6636,3725.3,3724.2,3.0]
[1733318305580,2.6636,3725.3,3724.3,2.68505]
[1733318305778,2.6636,3725.3,3724.4,3.0]
[1733318305943,3.7736,3725.3,3724.4,2.68493]
[1733318306138,1.6162,3725.2,3723.8,3.0]
[1733318306478,1.6162,3725.2,3724.3,2.68505]
[1733318306781,1.6162,3725.0,3723.8,3.0]
[1733318306944,0.55,3725.1,3723.4,2.68565]
[1733318306945,1.6013,3724.8,3724.0,3.0]
[1733318307656,1.6013,3724.8,3723.7,2.68548]
[1733318307840,1.6013,3724.6,3723.5,2.68563]
[1733318308043,1.6013,3724.4,3723.6,2.68557]
[1733318308274,1.6013,3724.4,3722.9,3.15385619]
[1733318308474,1.6013,3724.4,3723.7,2.68549]
[1733318309958,1.6013,3724.4,3723.6,3.0]
[1733318310155,1.6013,3724.4,3723.4,2.68571]
[1733318310504,1.6013,3724.4,3723.5,3.522793]
[1733318310660,1.6013,3724.4,3723.9,2.68535]
[1733318311091,1.6013,3724.4,3723.5,0.837153]
[1733318311295,1.6013,3724.4,3723.5,3.86400623]
[1733318311593,1.6013,3724.4,3723.8,2.68536]
[1733318312098,1.6013,3724.4,3723.6,2.68555]
[1733318312598,1.81643,3724.4,3723.4,3.0]
[1733318312805,1.81643,3724.4,3722.5,3.82796912]
[1733318312806,1.5155,3724.2,3722.6,5.37258]
[1733318313040,1.5155,3724.2,3723.2,2.68585]
[1733318313354,0.55,3724.3,3723.2,2.68585]
[1733318313355,1.6128,3724.0,3723.2,2.68585]
[1733318313553,1.6128,3724.0,3722.4,3.89830443]
[1733318313554,1.6128,3724.0,3722.4,0.5443942]
[1733318313756,1.6128,3724.0,3723.0,2.68594]
[1733318313924,1.6128,3723.8,3722.5,0.47904342]
[1733318314251,1.6128,3723.8,3723.0,2.68599]
[1733318314411,1.6128,3723.8,3722.5,3.16535342]
[1733318314616,1.6128,3723.8,3722.8,2.68613]
[1733318314930,1.6541,3723.7,3722.8,2.68613]
[1733318315246,0.48465523,3723.8,3722.2,2.68653]
[1733318315247,0.55,3723.4,3722.2,2.68653]
[1733318315417,1.6541,3723.3,3722.4,2.68642]
[1733318315616,1.6541,3723.3,3722.5,2.68635]
[1733318316153,1.6541,3723.3,3722.6,0.02686247]
[1733318316449,1.6541,3723.3,3722.9,2.68607]
[1733318316681,1.6541,3723.3,3723.1,2.6859]
[1733318317044,1.6541,3723.3,3723.0,2.68598]
[1733318317247,1.6541,3723.3,3722.7,2.68622]
[1733318317586,1.6541,3723.3,3723.2,2.68586]
[1733318317753,1.6015,3724.0,3723.3,2.68575]
[1733318317950,1.6015,3724.0,3723.6,2.68552]
[1733318318159,1.6015,3724.0,3722.8,0.2954855]
[1733318318160,1.6015,3724.0,3723.7,2.68549]
[1733318318364,1.6015,3724.0,3723.9,2.68535]
[1733318318561,1.6015,3724.0,3723.9,0.268535]
[1733318318990,1.6015,3724.0,3723.9,2.68535]
[1733318319677,1.6015,3724.0,3723.5,2.68561]
[1733318319678,1.6068,3724.4,3724.3,2.68506]
[1733318319837,1.6068,3724.4,3724.2,2.68513]
[1733318320037,1.6068,3724.4,3723.7,2.6855]
[1733318320038,1.6068,3724.4,3723.6,3.0]
[1733318320246,1.6068,3724.4,3724.3,2.68506]
[1733318320564,1.85676058,3725.0,3724.3,0.268506]
[1733318320770,1.6068,3725.0,3724.3,0.268506]
[1733318321078,1.6068,3725.0,3723.8,3.0]
[1733318321079,1.6068,3725.0,3724.5,2.68485]
[1733318321271,1.6068,3725.0,3724.6,2.68482]
[1733318321469,2.7168,3725.0,3724.6,2.68482]
[1733318322391,2.7168,3725.0,3724.1,2.68515]
[1733318322542,2.7168,3725.0,3724.4,2.68499]
[1733318322738,3.37554262,3725.0,3724.4,2.68499]
[1733318322984,0.25037538,3724.9,3724.3,2.68505]
[1733318323141,0.25044948,3724.8,3723.8,3.0]
[1733318323356,3.8268,3725.0,3723.9,4.83680498]
[1733318323702,3.8268,3725.0,3724.9,2.68463]
[1733318323844,3.8268,3725.0,3724.6,2.6848]
[1733318324044,3.8268,3725.0,3724.0,3.0]
[1733318324248,3.8268,3725.0,3724.1,0.46561]
[1733318324448,3.8268,3725.0,3724.4,2.68497]
[1733318324769,0.25051801,3724.9,3724.2,2.68507]
[1733318324966,4.9368,3725.0,3723.8,3.02684928]
[1733318325164,4.9368,3725.0,3724.5,2.68491]
[1733318325513,4.9368,3725.0,3724.9,2.68463]
[1733318326392,4.9368,3725.0,3724.8,2.68469]
[1733318326603,6.0468,3725.0,3724.8,2.68469]
[1733318326952,6.0468,3725.0,3724.9,2.68463]
[1733318328296,7.1568,3725.0,3724.6,2.68479]
[1733318328464,7.1568,3725.0,3724.3,3.0]
[1733318328800,7.1568,3725.0,3724.0,3.0]
[1733318329104,1.76511089,3724.9,3724.0,2.68521]
[1733318329253,0.25051089,3724.8,3724.0,2.68521]
[1733318329455,1.76511089,3724.7,3724.0,2.68521]
[1733318329655,0.25051089,3724.6,3723.3,4.32102]
[1733318329889,1.5146,3724.4,3723.2,2.68586]
[1733318330189,1.5146,3724.4,3723.8,2.68541]
[1733318330691,0.25057262,3724.3,3723.7,2.68545]
[1733318330859,1.5146,3724.4,3723.4,2.68566]
[1733318331053,1.5707,3724.2,3723.4,2.68566]
[1733318331381,0.25059391,3724.1,3723.4,2.68566]
[1733318331713,1.6481,3723.9,3722.8,2.68608]
[1733318331863,1.6481,3723.9,3722.9,2.68606]
[1733318332061,10.4881,3723.7,3722.9,2.68606]
[1733318332279,0.40114996,3723.6,3722.9,2.68606]
[1733318332481,1.94054996,3723.5,3722.7,2.6862]
[1733318332663,1.94054996,3723.5,3721.3,2.95552]
[1733318332664,10.3794,3723.3,3722.6,2.68629]
[1733318333085,8.84,3723.3,3722.4,2.68642]
[1733318333297,1.6422,3723.2,3722.4,2.68642]
[1733318333778,1.6422,3723.2,3721.6,2.68824273]
[1733318333958,3.21346689,3723.7,3722.2,2.68657]
[1733318333959,1.647,3723.0,3722.2,2.68657]
[1733318334356,1.647,3723.0,3722.2,2.68653]
[1733318334603,0.5377387,3722.7,3722.2,2.68653]
[1733318334959,1.647,3723.0,3722.2,2.68653]
[1733318335156,0.25066086,3722.9,3722.2,2.68653]
[1733318335356,1.5831,3722.8,3722.0,2.68672]
[1733318336233,10.4231,3722.8,3722.0,2.68672]
[1733318336392,10.4231,3722.8,3721.6,4.00916462]
[1733318336854,10.4231,3722.8,3721.9,2.68675]
[1733318336992,10.4231,3722.8,3722.4,2.68643]
[1733318337193,10.4231,3722.8,3722.3,2.68649]
[1733318338037,1.5831,3722.8,3722.4,2.6864]
[1733318338530,1.5831,3722.8,3722.3,2.68646]
[1733318338841,1.5831,3722.8,3722.5,2.68631]
[1733318339043,1.5831,3722.8,3722.6,2.68629]
[1733318339261,1.5831,3722.8,3722.7,2.68622]
[1733318340242,1.5831,3722.8,3722.3,3.0]
[1733318340535,1.5831,3722.8,3722.4,0.45032353]
[1733318340751,1.5831,3722.8,3722.7,2.68622]
[1733318341841,1.5612,3723.4,3722.5,2.71322053]
[1733318342053,1.5612,3723.4,3723.3,2.68578]
[1733318344139,0.54183061,3724.0,3723.3,2.68578]
[1733318344360,1.6283,3723.9,3722.8,2.68615]
[1733318344535,1.6283,3723.9,3722.8,2.6861]
[1733318344710,0.54183061,3724.0,3722.0,2.68671]
[1733318344711,1.6283,3723.7,3723.0,2.68598]
[1733318345107,2.68558,3723.6,3722.0,1.504]
[1733318345306,2.68558,3723.6,3721.5,3.15385619]
[1733318345307,2.1783,3723.1,3722.3,2.6865]
[1733318345530,2.1783,3723.1,3721.5,4.65785619]
[1733318345531,1.6283,3723.1,3722.0,2.68672]
[1733318345705,1.6283,3723.1,3722.4,2.68637]
[1733318345913,1.6283,3723.1,3722.5,0.02686228]
[1733318346208,1.6387,3723.4,3723.3,2.68578]
[1733318346421,8.84,3723.5,3723.4,2.68571]
[1733318347014,8.84,3723.5,3722.8,3.0]
[1733318347209,8.84,3723.8,3722.4,3.0]
[1733318347411,3.25385619,3724.8,3723.2,2.68585]
[1733318347412,1.6018,3723.4,3723.2,2.68585]
[1733318347650,1.6018,3723.4,3722.4,3.0]
[1733318348208,10.3902,3723.7,3722.5,0.02685749]
[1733318348433,1.5502,3723.7,3723.6,2.68557]
[1733318348610,8.84,3724.1,3722.7,5.84007619]
[1733318348611,1.5502,3724.0,3723.7,2.68543]
[1733318349208,1.5502,3724.0,3723.0,1.58]
[1733318349440,1.5502,3724.0,3723.1,0.458]
[1733318349751,1.5502,3724.0,3723.7,2.68544]
[1733318350448,1.5502,3724.0,3723.2,2.68581]
[1733318350654,1.5502,3724.0,3723.1,0.458]
[1733318350828,1.5502,3724.0,3723.7,2.68549]
[1733318351150,1.5502,3724.0,3723.5,2.68562]
[1733318351356,1.5502,3724.0,3723.1,0.458]
[1733318351551,1.5502,3724.0,3723.3,2.68578]
[1733318351724,1.5502,3724.0,3723.9,2.68535]
[1733318352258,1.5879,3724.5,3724.3,2.68503]
[1733318354264,1.5879,3724.5,3723.6,2.68557]
[1733318354483,1.5879,3724.5,3723.3,3.0]
[1733318354636,1.5196,3724.1,3723.3,2.68578]
[1733318354842,1.5196,3723.9,3722.8,3.0]
[1733318355062,1.5196,3723.9,3723.3,2.68572]
[1733318355263,0.55,3723.8,3722.6,3.0]
[1733318355464,1.5196,3723.9,3722.8,2.68615]
[1733318355784,1.5196,3723.9,3722.9,3.91085682]
[1733318356094,1.5196,3723.9,3723.7,2.68546]
[1733318356538,1.5196,3723.9,3723.2,2.68586]
[1733318356738,1.5196,3723.9,3723.0,2.686]
[1733318356940,1.5196,3723.9,3723.1,2.68586]
[1733318357287,0.55,3723.8,3723.1,2.68593]
[1733318357442,0.55,3723.8,3723.3,2.68577]
[1733318358188,0.55,3723.8,3722.9,0.88400062]
[1733318358389,1.6261,3723.7,3722.6,2.68625]
[1733318358557,0.55,3723.6,3722.9,2.68607]
[1733318358759,1.6261,3723.3,3722.4,2.68641]
[1733318358941,1.6261,3723.3,3722.6,2.68623]
[1733318359341,1.6261,3723.3,3723.0,2.68593]
[1733318359574,1.6261,3723.3,3722.7,2.68618]
[1733318359886,1.6261,3723.3,3722.9,2.68604]
[1733318360607,1.6261,3723.3,3722.5,2.68635]
[1733318360737,0.55,3723.0,3722.3,2.68649]
[1733318360943,1.5617,3722.9,3722.2,2.68658]
[1733318361787,0.55,3722.8,3722.2,2.68658]
[1733318361990,0.55,3722.8,3722.3,2.6865]
[1733318362148,0.55,3722.8,3722.1,2.68662]
[1733318362542,0.55,3722.8,3722.2,2.68655]
[1733318362740,0.55,3722.8,3721.9,0.00165507]
[1733318362741,10.4017,3722.9,3722.6,2.68629]
[1733318363048,2.68551,3723.7,3722.3,3.15385619]
[1733318363049,1.5383,3723.7,3722.3,3.15385619]
[1733318363345,1.5383,3723.7,3722.2,0.26882051]
[1733318363346,0.25090813,3723.6,3723.4,2.6857]
[1733318363542,1.5383,3723.7,3722.6,5.68622]
[1733318363842,1.5383,3723.7,3723.2,2.68585]
[1733318364069,1.5383,3723.7,3722.6,3.0]
[1733318364277,1.5383,3723.7,3723.2,2.68585]
[1733318365290,1.5383,3723.7,3722.7,3.254856]
[1733318365444,0.25094891,3723.6,3722.7,0.568636]
[1733318365647,1.5383,3723.7,3723.3,2.68576]
[1733318366585,1.5383,3723.7,3723.4,2.68565]
[1733318366744,1.5383,3723.7,3723.2,2.68584]
[1733318367554,1.5383,3723.7,3723.4,2.68564]
[1733318367783,1.5383,3723.7,3722.8,1.5098]
[1733318367784,1.5383,3723.7,3723.5,2.68563]
[1733318367987,1.5471,3724.0,3723.0,2.686]
[1733318368201,1.5471,3724.0,3723.9,2.68535]
[1733318370095,1.5471,3724.0,3723.3,3.0]
[1733318370301,1.5471,3724.0,3723.0,3.0]
[1733318370473,1.5471,3724.0,3723.8,2.68541]
[1733318370678,1.5471,3724.0,3723.8,2.68538]
[1733318371793,0.55,3723.9,3723.3,2.68577]
[1733318371959,0.55,3723.9,3722.8,3.0]
[1733318372160,1.5471,3724.0,3723.9,2.68535]
[1733318372389,1.5471,3724.0,3723.6,2.68552]
[1733318372703,1.5471,3724.0,3723.0,3.0]
[1733318372704,1.5471,3724.0,3723.7,2.68548]
[1733318372860,1.5471,3724.0,3723.9,2.68535]
[1733318373315,1.578,3724.5,3723.3,2.68572]
[1733318373548,1.578,3724.5,3723.1,5.83978619]
[1733318373549,1.578,3724.5,3723.5,2.68564]
[1733318373710,1.578,3724.5,3723.9,2.68534]
[1733318373907,1.578,3724.5,3724.1,0.00165507]
[1733318374133,0.55,3724.4,3724.1,0.00165507]
[1733318374310,0.55,3724.2,3724.1,0.00165507]
[1733318374522,1.578,3724.5,3724.1,0.00165507]
[1733318374727,0.55,3724.4,3724.1,0.00165507]
[1733318375248,1.6407,3724.2,3724.1,0.00165507]
[1733318375460,1.89174099,3724.2,3724.1,0.00165507]
[1733318375606,1.89174099,3724.2,3723.6,2.68554]
[1733318375607,2.44174099,3724.2,3723.4,2.68564]
[1733318375812,1.6407,3723.7,3722.9,2.68601]
[1733318376045,0.76907,3723.6,3722.0,2.5329393]
[1733318376206,0.76907,3723.6,3722.9,2.68604]
[1733318376413,0.55,3723.4,3722.9,2.68604]
[1733318376612,0.25112186,3723.5,3722.9,2.68604]
[1733318376613,1.5489,3723.3,3722.9,2.68604]
[1733318376808,1.5489,3723.3,3721.6,0.00127273]
[1733318376809,0.55,3723.0,3722.3,2.6865]
[1733318377012,0.25114618,3722.9,3721.9,2.5329393]
[1733318377241,1.5489,3723.1,3722.0,0.41197393]
[1733318377461,1.5489,3723.1,3722.0,0.43883798]
[1733318377676,1.5489,3723.1,3722.7,2.68615]
[1733318377816,1.5489,3723.1,3722.5,2.68633]
[1733318378014,1.5489,3723.1,3722.0,0.41197393]
[1733318378217,1.5489,3723.1,3722.1,0.59004054]
[1733318378442,1.5489,3723.1,3722.1,0.56317832]
[1733318378959,1.5489,3723.1,3722.9,2.68605]
[1733318379131,10.4343,3723.4,3722.5,4.28471994]
[1733318379473,10.4343,3723.4,3723.2,2.68586]
[1733318380162,0.54182932,3724.1,3722.5,1.5715]
[1733318380163,1.56,3723.9,3723.3,2.68578]
[1733318380365,0.25097079,3723.8,3723.3,2.68578]
[1733318380571,0.25097079,3723.7,3723.3,2.68578]
[1733318380782,1.56,3723.9,3723.1,2.68592]
[1733318380783,0.55,3723.8,3723.1,2.68592]
[1733318381070,0.25097834,3723.7,3723.1,2.68592]
[1733318381242,0.25097834,3723.6,3723.1,2.68592]
[1733318381431,0.55,3723.8,3722.7,3.0]
[1733318381632,0.55,3723.6,3722.9,2.68607]
[1733318382136,0.55,3723.6,3722.1,4.80828832]
[1733318382137,1.592,3723.5,3722.1,4.80828832]
[1733318382471,1.592,3723.2,3722.4,2.68638]
[1733318382774,1.592,3723.2,3722.5,2.68635]
[1733318383446,0.80105747,3723.1,3721.9,2.5329393]
[1733318383651,0.80105747,3723.1,3722.1,2.68658]
[1733318383652,0.55,3723.1,3722.1,2.68658]
[1733318383961,0.55,3723.1,3722.3,2.6865]
[1733318383962,8.84,3722.9,3722.3,2.6865]
[1733318384143,0.55,3722.8,3722.3,2.6865]
[1733318384346,0.55,3722.8,3722.0,3.0]
[1733318384556,1.5472,3722.7,3722.1,3.0]
[1733318384748,1.75692,3722.7,3721.6,0.00127273]
[1733318385249,1.75692,3722.7,3722.1,2.68665]
[1733318385747,1.6526,3722.5,3721.9,2.68679]
[1733318386073,1.6526,3722.5,3722.0,2.6867]
[1733318387152,1.6526,3722.5,3721.6,2.68824273]
[1733318387358,1.6526,3722.5,3722.0,2.68666]
[1733318387566,1.6526,3722.5,3721.6,0.00127273]
[1733318387567,1.893832,3722.5,3721.6,0.00127273]
[1733318387889,1.893832,3722.5,3721.8,2.68685]
[1733318388384,1.893832,3722.5,3721.6,0.00127273]
[1733318388385,8.84,3722.2,3721.6,0.00127273]
[1733318388678,0.55,3721.8,3721.6,0.00127273]
[1733318388878,2.0612,3721.7,3721.6,0.00127273]
[1733318389180,0.9610175,3721.7,3721.6,0.00127273]
[1733318389339,7.2810793,3721.7,3721.6,0.00127273]
[1733318389540,4.99908979,3721.7,3721.6,0.00127273]
[1733318390186,13.83908979,3721.7,3721.6,0.00127273]
[1733318390538,0.55,3721.6,3721.0,0.00127273]
[1733318390740,1.6511,3721.1,3721.0,0.00127273]
[1733318390952,11.0411,3721.1,3721.0,0.00127273]
[1733318391356,16.8931984,3721.1,3721.0,0.00127273]
[1733318391694,1.642,3720.6,3720.3,0.00127273]
[1733318392006,0.55,3720.5,3720.3,0.00127273]
[1733318392186,3.23781,3720.5,3720.3,0.00127273]
[1733318392479,11.350881,3720.4,3720.3,0.00127273]
[1733318393041,11.8909563,3720.4,3720.3,0.00127273]
[1733318393756,11.0271,3720.4,3720.3,0.00127273]
[1733318394205,1.526,3720.9,3720.5,2.68774]
[1733318394498,1.526,3720.9,3720.3,0.00127273]
[1733318394647,8.84,3721.3,3720.3,0.00127273]
[1733318394648,0.55018826,3721.1,3720.3,0.00127273]
[1733318394848,10.3884,3721.3,3720.7,2.68759]
[1733318395154,10.3884,3721.3,3720.5,2.6878]
[1733318395361,10.3884,3721.3,3720.7,2.68766]
[1733318395362,0.54943517,3721.2,3720.7,2.68766]
[1733318395557,0.54943517,3721.2,3720.3,0.00127273]
[1733318395801,0.55,3721.1,3720.7,2.68766]
[1733318396360,0.55,3721.2,3720.7,2.68765]
[1733318396570,8.84,3721.2,3720.3,0.00127273]
[1733318396796,1.68840483,3721.3,3721.0,2.68741]
[1733318397596,1.68840483,3721.3,3720.4,1.5281]
[1733318397766,0.14000483,3721.3,3721.2,2.6873]
[1733318398089,0.14000483,3721.3,3721.0,2.68743]
[1733318398317,0.14000483,3721.3,3720.4,4.21595]
[1733318398584,0.14000483,3721.3,3720.6,2.68773]
[1733318398585,1.5484,3721.1,3720.6,2.68773]
[1733318398950,1.5484,3721.1,3720.3,0.00127273]
[1733318398951,0.55,3721.0,3720.3,0.00127273]
[1733318400086,1.6263,3720.7,3720.3,0.00127273]
[1733318400606,0.55,3720.6,3720.3,0.00127273]
[1733318400946,0.55,3720.4,3720.3,0.00127273]
[1733318401861,0.81535063,3720.4,3720.3,0.00127273]
[1733318402060,0.81535063,3720.4,3719.6,0.75127273]
[1733318402061,9.65535063,3720.4,3719.6,0.75127273]
[1733318402290,1.628,3719.7,3719.6,0.75127273]
[1733318402495,0.55,3719.7,3719.6,0.75127273]